[Event "January 9 Early 2024"]
[Site "https://www.chess.com"]
[Date "2024.01.11"]
[Round "2"]
[White "Olcayoz, Gizem"]
[Black "Bashirli, Saadat"]
[Result "1-0"]
[Board "86"]
[TimeControl "180+1"]
[WhiteFideId "6301444"]
[BlackFideId "13429990"]
[WhiteElo "2002"]
[BlackElo "2417"]
[WhiteTeam "TUR"]
[BlackTeam "AZE"]
[WhiteClock "0:00:33"]
[BlackClock "0:00:22"]

1. e4 {[%clk 0:03:00]}  c6 {[%clk 0:02:57]} 2. d4 {[%clk 0:03:00]}  d5 {[%clk 0:02:57]} 3. e5 {[%clk 0:03:00]}  Bf5 {[%clk 0:02:56]} 4. h4 {[%clk 0:03:00]}  h5 {[%clk 0:02:55]} 5. Bg5 {[%clk 0:03:00]}  f6 {[%clk 0:02:54]} 6. Bf4 {[%clk 0:02:33]}  Nd7 {[%clk 0:02:50]} 7. Nf3 {[%clk 0:02:32]}  Bg4 {[%clk 0:02:47]} 8. Bd3 {[%clk 0:02:30]}  f5 {[%clk 0:02:35]} 9. Nbd2 {[%clk 0:01:51]}  e6 {[%clk 0:02:28]} 10. c4 {[%clk 0:01:49]}  Be7 {[%clk 0:02:21]} 11. Qb3 {[%clk 0:01:42]}  Rb8 {[%clk 0:02:13]} 12. Ng5 {[%clk 0:01:41]}  Bxg5 {[%clk 0:01:52]} 13. Bxg5 {[%clk 0:01:36]}  Qc7 {[%clk 0:01:30]} 14. f3 {[%clk 0:01:36]}  Nxe5 {[%clk 0:01:29]} 15. dxe5 {[%clk 0:01:36]}  Qxe5+ {[%clk 0:01:27]} 16. Kf2 {[%clk 0:01:15]}  f4 {[%clk 0:01:07]} 17. Rhe1 {[%clk 0:01:04]}  Qd4+ {[%clk 0:00:53]} 18. Kf1 {[%clk 0:00:59]}  Kf7 {[%clk 0:00:45]} 19. fxg4 {[%clk 0:00:53]}  hxg4 {[%clk 0:00:44]} 20. cxd5 {[%clk 0:00:49]}  g3 {[%clk 0:00:31]} 21. dxe6+ {[%clk 0:00:46]}  Ke8 {[%clk 0:00:31]} 22. Bg6+ {[%clk 0:00:38]}  Kf8 {[%clk 0:00:24]} 23. e7+ {[%clk 0:00:35]}  Nxe7 {[%clk 0:00:22]} 24. Bxe7# {[%clk 0:00:33]} 1-0

[Event "January 9 Early 2024"]
[Site "https://www.chess.com"]
[Date "2024.01.11"]
[Round "2"]
[White "Baches Garcia, Guillermo"]
[Black "Blokhin, Sofia"]
[Result "1-0"]
[Board "88"]
[TimeControl "180+1"]
[WhiteFideId "2209764"]
[BlackFideId "4508190"]
[WhiteElo "2518"]
[BlackElo "2290"]
[WhiteTeam "ESP"]
[BlackTeam "EST"]
[WhiteClock "0:00:43"]
[BlackClock "0:00:18"]

1. d4 {[%clk 0:03:00]}  f5 {[%clk 0:02:59]} 2. Nf3 {[%clk 0:03:01]}  Nf6 {[%clk 0:02:58]} 3. Bf4 {[%clk 0:03:02]}  g6 {[%clk 0:02:58]} 4. e3 {[%clk 0:03:02]}  Bg7 {[%clk 0:02:58]} 5. Bc4 {[%clk 0:03:02]}  d5 {[%clk 0:02:53]} 6. Be2 {[%clk 0:03:01]}  O-O {[%clk 0:02:52]} 7. h4 {[%clk 0:02:56]}  h6 {[%clk 0:02:39]} 8. Ne5 {[%clk 0:02:53]}  Kh7 {[%clk 0:02:38]} 9. Nc3 {[%clk 0:02:44]}  Nbd7 {[%clk 0:02:34]} 10. Qd3 {[%clk 0:02:23]}  e6 {[%clk 0:02:30]} 11. f3 {[%clk 0:02:18]}  Nxe5 {[%clk 0:02:23]} 12. Bxe5 {[%clk 0:02:16]}  Nh5 {[%clk 0:02:13]} 13. g4 {[%clk 0:02:07]}  Bxe5 {[%clk 0:02:02]} 14. dxe5 {[%clk 0:02:01]}  Ng3 {[%clk 0:01:57]} 15. Rh3 {[%clk 0:01:59]}  Nxe2 {[%clk 0:01:55]} 16. Nxe2 {[%clk 0:01:58]}  c5 {[%clk 0:01:36]} 17. h5 {[%clk 0:01:52]}  g5 {[%clk 0:01:20]} 18. O-O-O {[%clk 0:01:50]}  Kh8 {[%clk 0:01:15]} 19. gxf5 {[%clk 0:01:40]}  Rxf5 {[%clk 0:01:10]} 20. f4 {[%clk 0:01:40]}  Bd7 {[%clk 0:01:00]} 21. Ng3 {[%clk 0:01:31]}  Rf7 {[%clk 0:00:51]} 22. f5 {[%clk 0:01:11]}  c4 {[%clk 0:00:45]} 23. Qd4 {[%clk 0:01:08]}  Qa5 {[%clk 0:00:27]} 24. Kb1 {[%clk 0:00:56]}  exf5 {[%clk 0:00:25]} 25. e6+ {[%clk 0:00:53]}  Rg7 {[%clk 0:00:25]} 26. Nxf5 {[%clk 0:00:45]}  Rg8 {[%clk 0:00:18]} 27. exd7 {[%clk 0:00:43]} 1-0

[Event "January 9 Early 2024"]
[Site "https://www.chess.com"]
[Date "2024.01.11"]
[Round "2"]
[White "Sailer, Mike"]
[Black "Mohammadi, Melika"]
[Result "0-1"]
[Board "90"]
[TimeControl "180+1"]
[WhiteFideId "2012901"]
[BlackFideId "42529271"]
[WhiteElo "2191"]
[BlackElo "2469"]
[WhiteTeam "USA"]
[BlackTeam "IRI"]
[WhiteClock "0:00:06"]
[BlackClock "0:01:03"]

1. d4 {[%clk 0:03:00]}  d5 {[%clk 0:02:59]} 2. Bf4 {[%clk 0:02:59]}  Nf6 {[%clk 0:02:59]} 3. e3 {[%clk 0:03:00]}  c5 {[%clk 0:03:00]} 4. Nc3 {[%clk 0:02:59]}  cxd4 {[%clk 0:02:42]} 5. exd4 {[%clk 0:02:59]}  a6 {[%clk 0:02:39]} 6. Nf3 {[%clk 0:02:58]}  Nc6 {[%clk 0:02:39]} 7. a3 {[%clk 0:02:51]}  Bg4 {[%clk 0:02:31]} 8. Be2 {[%clk 0:02:49]}  e6 {[%clk 0:02:30]} 9. Ne5 {[%clk 0:02:48]}  Bxe2 {[%clk 0:02:28]} 10. Nxe2 {[%clk 0:02:47]}  Bd6 {[%clk 0:02:26]} 11. Nxc6 {[%clk 0:02:45]}  bxc6 {[%clk 0:02:26]} 12. Bxd6 {[%clk 0:02:45]}  Qxd6 {[%clk 0:02:27]} 13. O-O {[%clk 0:02:44]}  c5 {[%clk 0:02:21]} 14. c3 {[%clk 0:02:14]}  O-O {[%clk 0:02:14]} 15. Qd3 {[%clk 0:01:50]}  c4 {[%clk 0:02:08]} 16. Qc2 {[%clk 0:01:41]}  Rab8 {[%clk 0:02:06]} 17. f4 {[%clk 0:01:36]}  Rb6 {[%clk 0:01:46]} 18. Ng3 {[%clk 0:01:29]}  Rfb8 {[%clk 0:01:43]} 19. Rf2 {[%clk 0:01:23]}  Ng4 {[%clk 0:01:40]} 20. Re2 {[%clk 0:01:07]}  Qxf4 {[%clk 0:01:36]} 21. Rf1 {[%clk 0:01:07]}  Qh6 {[%clk 0:01:35]} 22. h3 {[%clk 0:01:06]}  Ne3 {[%clk 0:01:34]} 23. Qb1 {[%clk 0:00:49]}  Nxf1 {[%clk 0:01:32]} 24. Nxf1 {[%clk 0:00:49]}  Rb3 {[%clk 0:01:25]} 25. Qa1 {[%clk 0:00:28]}  Qf4 {[%clk 0:01:13]} 26. a4 {[%clk 0:00:25]}  Qc7 {[%clk 0:01:09]} 27. Nh2 {[%clk 0:00:13]}  Qb7 {[%clk 0:01:06]} 28. a5 {[%clk 0:00:06]}  Rxb2 {[%clk 0:01:04]} 29. Qa4 {[%clk 0:00:06]}  Rxe2 {[%clk 0:01:03]} 0-1

[Event "January 9 Early 2024"]
[Site "https://www.chess.com"]
[Date "2024.01.11"]
[Round "2"]
[White "Nepomniachtchi, Ian"]
[Black "Nigalidze, Gaioz"]
[Result "1-0"]
[Board "91"]
[TimeControl "180+1"]
[WhiteFideId "4168119"]
[BlackFideId "13603078"]
[WhiteElo "3125"]
[BlackElo "2678"]
[WhiteTeam "RUS"]
[BlackTeam "GEO"]
[WhiteClock "0:01:04"]
[BlackClock "0:00:12"]

1. e4 {[%clk 0:03:00]}  c5 {[%clk 0:02:59]} 2. Nf3 {[%clk 0:03:00]}  d6 {[%clk 0:02:59]} 3. d4 {[%clk 0:03:01]}  cxd4 {[%clk 0:02:59]} 4. Nxd4 {[%clk 0:03:02]}  Nf6 {[%clk 0:03:00]} 5. Nc3 {[%clk 0:03:03]}  a6 {[%clk 0:03:00]} 6. Be2 {[%clk 0:03:02]}  e5 {[%clk 0:03:00]} 7. Nf3 {[%clk 0:03:02]}  Be7 {[%clk 0:02:59]} 8. Bg5 {[%clk 0:03:03]}  O-O {[%clk 0:02:52]} 9. Bxf6 {[%clk 0:03:03]}  Bxf6 {[%clk 0:02:52]} 10. Nd5 {[%clk 0:03:04]}  Nd7 {[%clk 0:02:34]} 11. Qd2 {[%clk 0:03:01]}  Nc5 {[%clk 0:02:22]} 12. Qe3 {[%clk 0:02:56]}  Bg4 {[%clk 0:02:17]} 13. O-O-O {[%clk 0:02:53]}  Bxf3 {[%clk 0:02:16]} 14. Qxf3 {[%clk 0:02:47]}  Bg5+ {[%clk 0:02:10]} 15. Kb1 {[%clk 0:02:47]}  Ne6 {[%clk 0:02:06]} 16. h4 {[%clk 0:02:46]}  Bh6 {[%clk 0:02:06]} 17. g3 {[%clk 0:02:32]}  Rc8 {[%clk 0:01:55]} 18. Qa3 {[%clk 0:02:30]}  Nd4 {[%clk 0:01:42]} 19. Bd3 {[%clk 0:02:27]}  Rc6 {[%clk 0:01:33]} 20. c3 {[%clk 0:02:27]}  Ne6 {[%clk 0:01:33]} 21. Bc2 {[%clk 0:02:25]}  Kh8 {[%clk 0:01:31]} 22. Rd3 {[%clk 0:02:17]}  Nc5 {[%clk 0:01:23]} 23. Rf3 {[%clk 0:02:17]}  b5 {[%clk 0:01:17]} 24. g4 {[%clk 0:02:14]}  g6 {[%clk 0:01:02]} 25. g5 {[%clk 0:02:11]}  Bg7 {[%clk 0:01:01]} 26. Rfh3 {[%clk 0:02:05]}  Kg8 {[%clk 0:00:40]} 27. h5 {[%clk 0:01:32]}  Qxg5 {[%clk 0:00:40]} 28. hxg6 {[%clk 0:01:32]}  hxg6 {[%clk 0:00:40]} 29. c4 {[%clk 0:01:32]}  Re8 {[%clk 0:00:25]} 30. cxb5 {[%clk 0:01:18]}  axb5 {[%clk 0:00:25]} 31. Qa7 {[%clk 0:01:10]}  Ne6 {[%clk 0:00:20]} 32. Qd7 {[%clk 0:01:08]}  Rcc8 {[%clk 0:00:16]} 33. Rf3 {[%clk 0:01:07]}  Nf4 {[%clk 0:00:14]} 34. Bb3 {[%clk 0:01:06]}  Qg2 {[%clk 0:00:12]} 35. Nf6+ {[%clk 0:01:03]}  Bxf6 {[%clk 0:00:12]} 36. Qxf7# {[%clk 0:01:04]} 1-0

[Event "January 9 Early 2024"]
[Site "https://www.chess.com"]
[Date "2024.01.11"]
[Round "2"]
[White "Spichkin, Alexander"]
[Black "Llorente Zaro, Alfonso"]
[Result "0-1"]
[Board "92"]
[TimeControl "180+1"]
[WhiteFideId "4144074"]
[BlackFideId "2254131"]
[WhiteElo "2402"]
[BlackElo "2711"]
[WhiteTeam "RUS"]
[BlackTeam "ESP"]
[WhiteClock "0:01:20"]
[BlackClock "0:00:45"]

1. f4 {[%clk 0:03:00]}  d5 {[%clk 0:02:51]} 2. Nf3 {[%clk 0:03:00]}  g6 {[%clk 0:02:51]} 3. e3 {[%clk 0:03:00]}  Bg7 {[%clk 0:02:52]} 4. Be2 {[%clk 0:03:00]}  Nh6 {[%clk 0:02:52]} 5. O-O {[%clk 0:03:01]}  c5 {[%clk 0:02:52]} 6. d3 {[%clk 0:03:01]}  Nc6 {[%clk 0:02:52]} 7. c3 {[%clk 0:03:01]}  O-O {[%clk 0:02:48]} 8. Qe1 {[%clk 0:03:01]}  b5 {[%clk 0:02:48]} 9. e4 {[%clk 0:03:01]}  b4 {[%clk 0:02:44]} 10. Qh4 {[%clk 0:02:59]}  Ba6 {[%clk 0:02:35]} 11. f5 {[%clk 0:02:58]}  dxe4 {[%clk 0:02:30]} 12. Bxh6 {[%clk 0:02:57]}  exf3 {[%clk 0:02:27]} 13. Bxf3 {[%clk 0:02:57]}  Qxd3 {[%clk 0:02:23]} 14. Nd2 {[%clk 0:02:49]}  Rad8 {[%clk 0:02:12]} 15. Ne4 {[%clk 0:02:41]}  Ne5 {[%clk 0:01:26]} 16. Ng5 {[%clk 0:02:29]}  Qe3+ {[%clk 0:01:17]} 17. Kh1 {[%clk 0:02:28]}  f6 {[%clk 0:01:17]} 18. Rfe1 {[%clk 0:02:12]}  fxg5 {[%clk 0:01:13]} 19. Bxg5 {[%clk 0:02:12]}  Nxf3 {[%clk 0:01:09]} 20. Rxe3 {[%clk 0:02:07]}  Nxh4 {[%clk 0:01:09]} 21. Bxh4 {[%clk 0:02:07]}  bxc3 {[%clk 0:01:04]} 22. bxc3 {[%clk 0:02:06]}  Rxf5 {[%clk 0:01:04]} 23. Bxe7 {[%clk 0:02:05]}  Re8 {[%clk 0:01:04]} 24. Bxc5 {[%clk 0:02:05]}  Rxe3 {[%clk 0:01:03]} 25. Bxe3 {[%clk 0:02:06]}  Bxc3 {[%clk 0:01:00]} 26. Rc1 {[%clk 0:02:06]}  Rf1+ {[%clk 0:00:56]} 27. Rxf1 {[%clk 0:02:05]}  Bxf1 {[%clk 0:00:56]} 28. Bxa7 {[%clk 0:02:05]}  Bb4 {[%clk 0:00:55]} 29. Bb6 {[%clk 0:01:55]}  Bb5 {[%clk 0:00:56]} 30. h3 {[%clk 0:01:52]}  Ba3 {[%clk 0:00:56]} 31. g4 {[%clk 0:01:50]}  Bc4 {[%clk 0:00:56]} 32. Kg2 {[%clk 0:01:50]}  Bxa2 {[%clk 0:00:56]} 33. Kf3 {[%clk 0:01:51]}  Bd5+ {[%clk 0:00:56]} 34. Kf4 {[%clk 0:01:51]}  Bd6+ {[%clk 0:00:57]} 35. Ke3 {[%clk 0:01:48]}  Bg3 {[%clk 0:00:52]} 36. Bd8 {[%clk 0:01:43]}  Kf7 {[%clk 0:00:53]} 37. Kd4 {[%clk 0:01:39]}  Bg2 {[%clk 0:00:47]} 38. h4 {[%clk 0:01:39]}  Bf3 {[%clk 0:00:46]} 39. g5 {[%clk 0:01:36]}  Bxh4 {[%clk 0:00:46]} 40. Ke3 {[%clk 0:01:36]}  Bc6 {[%clk 0:00:44]} 41. Kf4 {[%clk 0:01:36]}  h6 {[%clk 0:00:44]} 42. Kg4 {[%clk 0:01:32]}  Bxg5 {[%clk 0:00:44]} 43. Bc7 {[%clk 0:01:31]}  Bd7+ {[%clk 0:00:43]} 44. Kg3 {[%clk 0:01:30]}  h5 {[%clk 0:00:43]} 45. Bd6 {[%clk 0:01:29]}  Bf6 {[%clk 0:00:44]} 46. Kf4 {[%clk 0:01:28]}  Ke6 {[%clk 0:00:44]} 47. Bc7 {[%clk 0:01:28]}  g5+ {[%clk 0:00:45]} 48. Kf3 {[%clk 0:01:28]}  Bc6+ {[%clk 0:00:46]} 49. Kf2 {[%clk 0:01:27]}  Kf5 {[%clk 0:00:47]} 50. Bb6 {[%clk 0:01:26]}  h4 {[%clk 0:00:47]} 51. Kg1 {[%clk 0:01:26]}  g4 {[%clk 0:00:47]} 52. Kh2 {[%clk 0:01:27]}  g3+ {[%clk 0:00:46]} 53. Kh3 {[%clk 0:01:26]}  Kg5 {[%clk 0:00:46]} 54. Bc7 {[%clk 0:01:25]}  Bd7+ {[%clk 0:00:46]} 55. Kg2 {[%clk 0:01:24]}  Kg4 {[%clk 0:00:46]} 56. Kh1 {[%clk 0:01:23]}  Bd4 {[%clk 0:00:45]} 57. Bd6 {[%clk 0:01:20]}  Bc6# {[%clk 0:00:45]} 0-1

[Event "January 9 Early 2024"]
[Site "https://www.chess.com"]
[Date "2024.01.11"]
[Round "2"]
[White "Injac, Teodora"]
[Black "Wantiez, Fabrice"]
[Result "1/2-1/2"]
[Board "94"]
[TimeControl "180+1"]
[WhiteFideId "932400"]
[BlackFideId "202274"]
[WhiteElo "2640"]
[BlackElo "2389"]
[WhiteTeam "SRB"]
[BlackTeam "BEL"]
[WhiteClock "0:00:08"]
[BlackClock "0:01:06"]

1. d4 {[%clk 0:03:00]}  Nf6 {[%clk 0:02:59]} 2. Nf3 {[%clk 0:03:01]}  g6 {[%clk 0:02:59]} 3. g3 {[%clk 0:03:01]}  Bg7 {[%clk 0:02:59]} 4. Bg2 {[%clk 0:03:01]}  O-O {[%clk 0:03:00]} 5. O-O {[%clk 0:03:02]}  d5 {[%clk 0:03:00]} 6. c4 {[%clk 0:03:00]}  c6 {[%clk 0:03:01]} 7. Nbd2 {[%clk 0:03:00]}  Bf5 {[%clk 0:02:59]} 8. b3 {[%clk 0:03:00]}  Ne4 {[%clk 0:02:58]} 9. Bb2 {[%clk 0:03:00]}  Nd7 {[%clk 0:02:58]} 10. Rc1 {[%clk 0:02:54]}  Nxd2 {[%clk 0:02:57]} 11. Qxd2 {[%clk 0:02:51]}  Be4 {[%clk 0:02:55]} 12. Rfd1 {[%clk 0:02:51]}  e6 {[%clk 0:02:52]} 13. e3 {[%clk 0:02:44]}  f5 {[%clk 0:02:46]} 14. Qe2 {[%clk 0:02:43]}  g5 {[%clk 0:02:40]} 15. b4 {[%clk 0:02:11]}  g4 {[%clk 0:02:39]} 16. Ne5 {[%clk 0:02:11]}  Bxe5 {[%clk 0:02:37]} 17. dxe5 {[%clk 0:02:05]}  Bxg2 {[%clk 0:02:37]} 18. Kxg2 {[%clk 0:02:05]}  Qe7 {[%clk 0:02:32]} 19. b5 {[%clk 0:01:59]}  Nb6 {[%clk 0:02:27]} 20. cxd5 {[%clk 0:01:29]}  cxd5 {[%clk 0:02:28]} 21. a4 {[%clk 0:01:21]}  Nc4 {[%clk 0:02:25]} 22. Bc3 {[%clk 0:01:17]}  a6 {[%clk 0:02:20]} 23. h3 {[%clk 0:01:06]}  gxh3+ {[%clk 0:02:18]} 24. Kxh3 {[%clk 0:01:06]}  axb5 {[%clk 0:02:18]} 25. axb5 {[%clk 0:01:06]}  Ra4 {[%clk 0:02:13]} 26. Kg2 {[%clk 0:01:05]}  Rfa8 {[%clk 0:02:13]} 27. Rh1 {[%clk 0:01:01]}  Qd7 {[%clk 0:02:12]} 28. Rh6 {[%clk 0:00:57]}  Ra2 {[%clk 0:02:10]} 29. Qf3 {[%clk 0:00:52]}  R8a3 {[%clk 0:01:56]} 30. Bd4 {[%clk 0:00:47]}  Rd2 {[%clk 0:01:52]} 31. Qh5 {[%clk 0:00:36]}  Raa2 {[%clk 0:01:48]} 32. Rf1 {[%clk 0:00:27]}  Rxd4 {[%clk 0:01:21]} 33. Qg5+ {[%clk 0:00:24]}  Qg7 {[%clk 0:01:11]} 34. Qd8+ {[%clk 0:00:24]}  Qf8 {[%clk 0:01:08]} 35. Qg5+ {[%clk 0:00:18]}  Qg7 {[%clk 0:01:08]} 36. Qd8+ {[%clk 0:00:17]}  Qf8 {[%clk 0:01:09]} 37. Qg5+ {[%clk 0:00:08]}  Qg7 {[%clk 0:01:06]} 1/2-1/2

[Event "January 9 Early 2024"]
[Site "https://www.chess.com"]
[Date "2024.01.11"]
[Round "2"]
[White "Perez Ponsa, Federico"]
[Black "Pinheiro, Iung Alicio de O."]
[Result "0-1"]
[Board "96"]
[TimeControl "180+1"]
[WhiteFideId "117927"]
[BlackFideId "2104350"]
[WhiteElo "2865"]
[BlackElo "2600"]
[WhiteTeam "ARG"]
[BlackTeam "BRA"]
[WhiteClock "0:00:40"]
[BlackClock "0:00:29"]

1. e4 {[%clk 0:02:54]}  d6 {[%clk 0:03:00]} 2. d4 {[%clk 0:02:53]}  Nf6 {[%clk 0:03:00]} 3. Nc3 {[%clk 0:02:53]}  e5 {[%clk 0:03:01]} 4. Nf3 {[%clk 0:02:53]}  exd4 {[%clk 0:03:00]} 5. Nxd4 {[%clk 0:02:53]}  Be7 {[%clk 0:03:01]} 6. g3 {[%clk 0:02:51]}  O-O {[%clk 0:03:00]} 7. Bg2 {[%clk 0:02:52]}  Re8 {[%clk 0:02:49]} 8. O-O {[%clk 0:02:52]}  Bf8 {[%clk 0:02:48]} 9. Re1 {[%clk 0:02:50]}  Nbd7 {[%clk 0:02:45]} 10. b3 {[%clk 0:02:49]}  c6 {[%clk 0:02:44]} 11. Bb2 {[%clk 0:02:47]}  Nc5 {[%clk 0:02:43]} 12. h3 {[%clk 0:02:43]}  a5 {[%clk 0:02:43]} 13. a3 {[%clk 0:02:40]}  Qb6 {[%clk 0:02:41]} 14. Qd2 {[%clk 0:02:40]}  Bd7 {[%clk 0:02:37]} 15. Rad1 {[%clk 0:02:40]}  Rad8 {[%clk 0:02:37]} 16. Kh2 {[%clk 0:02:40]}  Bc8 {[%clk 0:02:37]} 17. f4 {[%clk 0:02:39]}  g6 {[%clk 0:02:34]} 18. Qf2 {[%clk 0:02:33]}  Bg7 {[%clk 0:02:32]} 19. g4 {[%clk 0:02:27]}  Bxg4 {[%clk 0:02:17]} 20. Rd2 {[%clk 0:02:27]}  Bc8 {[%clk 0:02:15]} 21. e5 {[%clk 0:02:02]}  Nh5 {[%clk 0:02:06]} 22. exd6 {[%clk 0:01:55]}  Rxe1 {[%clk 0:01:43]} 23. Qxe1 {[%clk 0:01:56]}  Nxf4 {[%clk 0:01:43]} 24. Nf3 {[%clk 0:01:46]}  Nxg2 {[%clk 0:01:26]} 25. Kxg2 {[%clk 0:01:47]}  Be6 {[%clk 0:01:18]} 26. Ba1 {[%clk 0:01:39]}  Bf8 {[%clk 0:01:09]} 27. Ne4 {[%clk 0:01:35]}  Nxe4 {[%clk 0:01:03]} 28. Qxe4 {[%clk 0:01:36]}  Rxd6 {[%clk 0:00:39]} 29. Qe5 {[%clk 0:01:24]}  f6 {[%clk 0:00:39]} 30. Rxd6 {[%clk 0:01:01]}  fxe5 {[%clk 0:00:36]} 31. Rxe6 {[%clk 0:01:02]}  Qc5 {[%clk 0:00:32]} 32. Rxe5 {[%clk 0:00:45]}  Qxc2+ {[%clk 0:00:32]} 33. Kf1 {[%clk 0:00:40]}  Qd1+ {[%clk 0:00:29]} 0-1

[Event "January 9 Early 2024"]
[Site "https://www.chess.com"]
[Date "2024.01.11"]
[Round "2"]
[White "Kiselev, Vitalii"]
[Black "Kozak, Adam"]
[Result "1-0"]
[Board "97"]
[TimeControl "180+1"]
[WhiteFideId "4194128"]
[BlackFideId "753246"]
[WhiteElo "2732"]
[BlackElo "2888"]
[WhiteTeam "FID"]
[BlackTeam "HUN"]
[WhiteClock "0:00:42"]
[BlackClock "0:00:01"]

1. e4 {[%clk 0:03:00]}  c5 {[%clk 0:02:31]} 2. Nc3 {[%clk 0:02:58]}  Nc6 {[%clk 0:02:26]} 3. Bb5 {[%clk 0:02:57]}  e6 {[%clk 0:02:25]} 4. Bxc6 {[%clk 0:02:56]}  bxc6 {[%clk 0:02:23]} 5. d3 {[%clk 0:02:57]}  Rb8 {[%clk 0:02:19]} 6. b3 {[%clk 0:02:54]}  d5 {[%clk 0:01:56]} 7. Nge2 {[%clk 0:02:52]}  Nf6 {[%clk 0:01:55]} 8. O-O {[%clk 0:02:51]}  Be7 {[%clk 0:01:54]} 9. f3 {[%clk 0:02:35]}  O-O {[%clk 0:01:49]} 10. Na4 {[%clk 0:02:34]}  c4 {[%clk 0:01:45]} 11. dxc4 {[%clk 0:02:22]}  dxe4 {[%clk 0:01:44]} 12. Qxd8 {[%clk 0:02:09]}  Rxd8 {[%clk 0:01:45]} 13. Be3 {[%clk 0:02:08]}  exf3 {[%clk 0:01:44]} 14. gxf3 {[%clk 0:01:58]}  Ba6 {[%clk 0:00:56]} 15. Bxa7 {[%clk 0:01:51]}  Ra8 {[%clk 0:00:55]} 16. Bc5 {[%clk 0:01:49]}  Rd2 {[%clk 0:00:20]} 17. Bxe7 {[%clk 0:01:41]}  Rxe2 {[%clk 0:00:20]} 18. Rf2 {[%clk 0:01:41]}  Re3 {[%clk 0:00:07]} 19. Rd1 {[%clk 0:01:25]}  Nh5 {[%clk 0:00:06]} 20. Nc5 {[%clk 0:01:10]}  h6 {[%clk 0:00:05]} 21. a4 {[%clk 0:01:01]}  g5 {[%clk 0:00:05]} 22. Bd6 {[%clk 0:00:58]}  Bc8 {[%clk 0:00:01]} 23. Ne4 {[%clk 0:00:42]}  f5 {[%clk 0:00:01]} 24. Ng3 {[%clk 0:00:42]} 1-0

[Event "January 9 Early 2024"]
[Site "https://www.chess.com"]
[Date "2024.01.11"]
[Round "2"]
[White "Sturt, Raven"]
[Black "Carre, Sylvain"]
[Result "1-0"]
[Board "98"]
[TimeControl "180+1"]
[WhiteFideId "2007304"]
[BlackFideId "642118"]
[WhiteElo "2733"]
[BlackElo "2369"]
[WhiteTeam "USA"]
[BlackTeam "FRA"]
[WhiteClock "0:01:17"]
[BlackClock "0:00:05"]

1. f4 {[%clk 0:03:00]}  Nh6 {[%clk 0:02:57]} 2. Nf3 {[%clk 0:03:00]}  d5 {[%clk 0:02:57]} 3. d3 {[%clk 0:03:01]}  Bg4 {[%clk 0:02:54]} 4. e4 {[%clk 0:02:56]}  dxe4 {[%clk 0:02:53]} 5. dxe4 {[%clk 0:02:57]}  Qxd1+ {[%clk 0:02:53]} 6. Kxd1 {[%clk 0:02:58]}  Nc6 {[%clk 0:02:52]} 7. c3 {[%clk 0:02:57]}  O-O-O+ {[%clk 0:02:52]} 8. Kc2 {[%clk 0:02:57]}  e5 {[%clk 0:02:41]} 9. h3 {[%clk 0:02:54]}  Bxf3 {[%clk 0:02:00]} 10. gxf3 {[%clk 0:02:53]}  Bd6 {[%clk 0:01:58]} 11. f5 {[%clk 0:02:51]}  Ng8 {[%clk 0:01:54]} 12. Bc4 {[%clk 0:02:49]}  f6 {[%clk 0:01:39]} 13. Rg1 {[%clk 0:02:47]}  g6 {[%clk 0:01:39]} 14. fxg6 {[%clk 0:02:47]}  hxg6 {[%clk 0:01:40]} 15. Rxg6 {[%clk 0:02:48]}  Nge7 {[%clk 0:01:38]} 16. Rg3 {[%clk 0:02:47]}  Kb8 {[%clk 0:01:30]} 17. Be6 {[%clk 0:02:25]}  Bc5 {[%clk 0:01:22]} 18. b4 {[%clk 0:02:19]}  Bf2 {[%clk 0:01:22]} 19. Rg2 {[%clk 0:02:20]}  Be1 {[%clk 0:01:14]} 20. Na3 {[%clk 0:02:13]}  Rd6 {[%clk 0:00:59]} 21. Bg4 {[%clk 0:02:12]}  Rhd8 {[%clk 0:00:53]} 22. Nc4 {[%clk 0:02:01]}  Rd3 {[%clk 0:00:46]} 23. Bb2 {[%clk 0:01:54]}  Bh4 {[%clk 0:00:44]} 24. b5 {[%clk 0:01:47]}  Bg5 {[%clk 0:00:14]} 25. bxc6 {[%clk 0:01:46]}  Nxc6 {[%clk 0:00:15]} 26. Rh1 {[%clk 0:01:42]}  Bh4 {[%clk 0:00:15]} 27. Rd2 {[%clk 0:01:39]}  Rxd2+ {[%clk 0:00:14]} 28. Nxd2 {[%clk 0:01:39]}  Bg5 {[%clk 0:00:14]} 29. Nb3 {[%clk 0:01:33]}  a5 {[%clk 0:00:12]} 30. h4 {[%clk 0:01:33]}  Bf4 {[%clk 0:00:12]} 31. a4 {[%clk 0:01:33]}  Na7 {[%clk 0:00:11]} 32. Bc1 {[%clk 0:01:30]}  b5 {[%clk 0:00:09]} 33. Bxf4 {[%clk 0:01:27]}  bxa4 {[%clk 0:00:09]} 34. Nxa5 {[%clk 0:01:21]}  exf4 {[%clk 0:00:08]} 35. h5 {[%clk 0:01:21]}  Rh8 {[%clk 0:00:05]} 36. h6 {[%clk 0:01:21]}  Nb5 {[%clk 0:00:06]} 37. h7 {[%clk 0:01:20]}  Nd6 {[%clk 0:00:06]} 38. Bf5 {[%clk 0:01:21]}  Nxf5 {[%clk 0:00:05]} 39. exf5 {[%clk 0:01:21]}  Ka7 {[%clk 0:00:05]} 40. Nc6+ {[%clk 0:01:19]}  Kb6 {[%clk 0:00:06]} 41. Ne7 {[%clk 0:01:19]}  a3 {[%clk 0:00:05]} 42. Ng6 {[%clk 0:01:17]} 1-0

[Event "January 9 Early 2024"]
[Site "https://www.chess.com"]
[Date "2024.01.11"]
[Round "2"]
[White "Jusup, Matej"]
[Black "Tristan, Leonardo"]
[Result "0-1"]
[Board "99"]
[TimeControl "180+1"]
[WhiteFideId "14517876"]
[BlackFideId "113816"]
[WhiteElo "2376"]
[BlackElo "2735"]
[WhiteTeam "CRO"]
[BlackTeam "ARG"]
[WhiteClock "0:00:08"]
[BlackClock "0:00:59"]

1. e4 {[%clk 0:03:00]}  d5 {[%clk 0:02:59]} 2. exd5 {[%clk 0:03:00]}  Qxd5 {[%clk 0:03:00]} 3. Nc3 {[%clk 0:03:00]}  Qa5 {[%clk 0:03:00]} 4. d4 {[%clk 0:03:00]}  Nf6 {[%clk 0:03:00]} 5. Nf3 {[%clk 0:03:01]}  Bf5 {[%clk 0:03:01]} 6. Bc4 {[%clk 0:02:58]}  e6 {[%clk 0:03:01]} 7. Bd2 {[%clk 0:02:55]}  Bb4 {[%clk 0:03:01]} 8. a3 {[%clk 0:02:52]}  Bxc3 {[%clk 0:03:01]} 9. Bxc3 {[%clk 0:02:50]}  Qb6 {[%clk 0:03:01]} 10. O-O {[%clk 0:02:47]}  O-O {[%clk 0:03:00]} 11. Bb3 {[%clk 0:02:33]}  Nc6 {[%clk 0:02:58]} 12. Ne5 {[%clk 0:02:30]}  Nxe5 {[%clk 0:02:50]} 13. dxe5 {[%clk 0:02:31]}  Rad8 {[%clk 0:02:50]} 14. exf6 {[%clk 0:02:18]}  Rxd1 {[%clk 0:02:49]} 15. Raxd1 {[%clk 0:02:18]}  gxf6 {[%clk 0:02:47]} 16. Bxf6 {[%clk 0:02:17]}  Qc6 {[%clk 0:02:39]} 17. Rd4 {[%clk 0:02:00]}  h6 {[%clk 0:02:37]} 18. Rfd1 {[%clk 0:01:58]}  Kh7 {[%clk 0:02:36]} 19. Rc4 {[%clk 0:01:16]}  Qb6 {[%clk 0:02:26]} 20. Rd7 {[%clk 0:01:08]}  e5 {[%clk 0:02:23]} 21. Be7 {[%clk 0:00:58]}  Bxd7 {[%clk 0:02:14]} 22. Bxf8 {[%clk 0:00:58]}  Be6 {[%clk 0:01:45]} 23. Rb4 {[%clk 0:00:56]}  Qc6 {[%clk 0:01:39]} 24. Bxe6 {[%clk 0:00:49]}  Qxe6 {[%clk 0:01:39]} 25. Rh4 {[%clk 0:00:35]}  h5 {[%clk 0:01:29]} 26. g4 {[%clk 0:00:20]}  Kg8 {[%clk 0:01:26]} 27. Bb4 {[%clk 0:00:15]}  hxg4 {[%clk 0:01:12]} 28. Kg2 {[%clk 0:00:15]}  Qd5+ {[%clk 0:01:09]} 29. Kf1 {[%clk 0:00:11]}  Qd1+ {[%clk 0:01:05]} 30. Kg2 {[%clk 0:00:11]}  f6 {[%clk 0:01:06]} 31. Bc3 {[%clk 0:00:10]}  Kg7 {[%clk 0:01:01]} 32. a4 {[%clk 0:00:08]}  Kg6 {[%clk 0:01:01]} 33. h3 {[%clk 0:00:08]}  Qf3+ {[%clk 0:01:00]} 34. Kg1 {[%clk 0:00:08]}  gxh3 {[%clk 0:00:59]} 0-1